fUSD/lending_fUSD_20240215
["ID","MTS","AMOUNT","RATE_DAILY","PERIOD"]
[314160655,1708032662918,-500.0,0.00039178,7]
[314160656,1708032662928,-630.95214041,0.00039178,7]
[314160657,1708032662937,-500.0,0.00039178,7]
[314160658,1708032662946,-500.0,0.00039178,7]
[314160659,1708032662955,-500.0,0.00039178,7]
[314160660,1708032662965,-158.08,0.00039196,2]
[314160661,1708032662974,-200.0,0.00039233,20]
[314160662,1708032662983,-234.021624,0.00039248,24]
[314160663,1708032662993,-346.98,0.0003926,2]
[314160664,1708032663003,-3241.70519992,0.00039279,2]
[314160665,1708032663012,-151.0,0.00039279,7]
[314160666,1708032663021,-151.0,0.0003929,7]
[314160667,1708032663030,-151.0,0.0003929,7]
[314160668,1708032663039,-525.05705763,0.00039294,2]
[314160669,1708032663049,-937.25220492,0.00039295,2]
[314160670,1708032663059,-297.0,0.000393,13]
[314160671,1708032663070,-750.06,0.000393,3]
[314160672,1708032663079,-750.06,0.000393,3]
[314160673,1708032663089,-750.06,0.000393,3]
[314160674,1708032663099,-750.06,0.000393,3]
[314160675,1708032663113,-750.06,0.000393,3]
[314160676,1708032663124,-750.06,0.000393,3]
[314160677,1708032663133,-750.06,0.000393,3]
[314160678,1708032663142,-750.06,0.000393,3]
[314160679,1708032663155,-750.06,0.000393,3]
[314160680,1708032663164,-750.06,0.000393,3]
[314160681,1708032663174,-750.06,0.000393,3]
[314160682,1708032663184,-750.06,0.000393,3]
[314160683,1708032663193,-750.06,0.000393,3]
[314160684,1708032663205,-750.06,0.000393,3]
[314160685,1708032663216,-750.06,0.000393,3]
[314160686,1708032663229,-750.06,0.000393,3]
[314160687,1708032663241,-750.06,0.000393,3]
[314160688,1708032663251,-750.06,0.000393,3]
[314160689,1708032663267,-750.06,0.000393,3]
[314160690,1708032663278,-750.06,0.000393,3]
[314160691,1708032663289,-154.01,0.000393,3]
[314160692,1708032663310,-154.01,0.000393,3]
[314160693,1708032663340,-2194.62448,0.000393,29]
[314160694,1708032663385,-286.04676632,0.00039317,7]
[314160695,1708032663438,-329.5728378,0.00039317,7]
[314160696,1708032663473,-270.35876587,0.00039317,7]
[314160697,1708032663488,-289.24000008,0.00039317,7]
[314160698,1708032663575,-500.0,0.00038356,7]
[314160699,1708032663586,-500.0,0.00038356,7]
[314160700,1708032663599,-111.23189626,0.00039317,7]
[314160701,1708032663614,-1519.04973367,0.00039317,7]
[314160702,1708032663624,-1725.36000209,0.00039317,7]
[314160703,1708032663639,-1080.13999791,0.00039317,7]
[314160704,1708032663652,-172.03170123,0.00039336,2]
[314160705,1708032663673,-500.0,0.00038356,7]
[314160706,1708032663684,-402.73829877,0.00039336,2]
[314160707,1708032663695,-800.0,0.00039342,15]
[314160708,1708032663707,-200.0,0.00039342,20]
[314160709,1708032663718,-234.021624,0.00039348,25]
[314160710,1708032663729,-151.18,0.00039355,2]
[314160711,1708032663740,-218.168,0.00039362,2]
[314160712,1708032663751,-151.0,0.00039375,7]
[314160713,1708032663762,-753.46497669,0.00039394,3]
[314160714,1708032663777,-178.49655563,0.00039394,30]
[314160715,1708032663787,-645.13182286,0.00039394,90]
[314160716,1708032663797,-5143.97942604,0.00039394,2]
[314160717,1708032663808,-3272.66824156,0.00039394,2]
[314160718,1708032663818,-251.90631305,0.00039394,10]
[314160719,1708032663828,-850.35816898,0.00039394,2]
[314160720,1708032663837,-173.91639874,0.00039394,2]
[314160721,1708032663848,-72922.41356881,0.00039394,2]
[314160722,1708032663859,-155.2106303,0.00039394,2]
[314160723,1708032663869,-161.6483363,0.00039394,2]
[314160724,1708032663880,-1912.95752079,0.00039394,120]
[314160725,1708032663892,-3331.00198832,0.00039394,2]
[314160726,1708032663920,-8886.7145232,0.00039394,2]
[314160727,1708032663953,-1261.98064401,0.00039394,2]
[314160728,1708032663989,-4757.81609302,0.00039394,2]
[314160729,1708032664024,-41074.0093764,0.00039394,2]
[314160730,1708032664050,-1377.19229444,0.00039394,30]
[314160731,1708032664061,-984.54123815,0.00039394,2]
[314160732,1708032664071,-21832.86594093,0.00039394,2]
[314160733,1708032664081,-162.95137962,0.00039394,2]
[314160734,1708032664091,-157.09620391,0.00039394,2]
[314160735,1708032664105,-410.46379867,0.00039394,120]
[314160736,1708032664116,-162.73999049,0.00039394,15]
[314160737,1708032664129,-1232.0,0.00039394,4]
[314160738,1708032664139,-251.17686157,0.00039394,30]
[314160739,1708032664150,-19479.5284887,0.00039394,2]
[314160740,1708032664160,-21399.53195405,0.00039394,7]
[314160741,1708032664169,-922.80527199,0.00039394,120]
[314160742,1708032664179,-532.31712027,0.00039394,2]
[314160743,1708032664189,-316.52391903,0.00039394,30]
[314160744,1708032664199,-636.73963812,0.00039394,4]
[314160745,1708032664208,-156.97067029,0.00039394,2]
[314160746,1708032664219,-2090.7291501,0.00039394,10]
[314160747,1708032664229,-869.33616524,0.00039394,120]
[314160748,1708032664237,-1418.34495093,0.00039394,2]
[314160749,1708032664247,-584.84890433,0.00039394,120]
[314160750,1708032664257,-54366.61600931,0.00039394,2]
[314160751,1708032664266,-155.43263762,0.00039394,2]
[314160752,1708032664276,-551.80853329,0.00039394,14]
[314160753,1708032664287,-5915.03359233,0.00039394,2]
[314160754,1708032664297,-11204.7133579,0.00039394,120]
[314160755,1708032664307,-11066.12535873,0.00039394,2]
[314160756,1708032664317,-1044.78293957,0.00039394,2]
[314160757,1708032664328,-618.18389113,0.00039394,120]
[314160758,1708032664338,-13188.50299122,0.00039394,2]
[314160759,1708032664349,-500.0,0.00039394,120]
[314160760,1708032664359,-1751.579422,0.00039394,30]
[314160761,1708032664369,-151.0,0.00039395,7]
[314160762,1708032664379,-151.0,0.00039395,7]
[314160763,1708032664389,-151.0,0.00039395,7]
[314160764,1708032664402,-151.0,0.00039395,2]
[314160765,1708032664411,-151.0,0.00039395,2]
[314160766,1708032664421,-151.0,0.00039395,7]
[314160767,1708032664431,-425.404736,0.00039395,7]
[314160768,1708032664441,-425.404736,0.00039395,7]
[314160769,1708032664451,-151.0,0.00039395,7]
[314160770,1708032664462,-151.0,0.00039395,7]
[314160771,1708032664472,-151.0,0.00039395,7]
[314160772,1708032664481,-151.0,0.00039395,7]
[314160773,1708032664491,-151.0,0.00039395,7]
[314160774,1708032664501,-151.0,0.00039395,7]
[314160775,1708032664511,-151.0,0.00039395,7]
[314160776,1708032664522,-439.98,0.00039425,2]
[314160777,1708032664532,-1004.0,0.00039425,2]
[314160778,1708032664543,-568.433,0.00039425,2]
[314160779,1708032664552,-237.0,0.00039425,2]
[314160780,1708032664562,-857.0,0.00039425,2]
[314160781,1708032664571,-1138.0,0.00039425,2]
[314160782,1708032664580,-321.0,0.00039425,2]
[314160783,1708032664590,-343.0,0.00039425,2]
[314160784,1708032664599,-150.0,0.00039425,2]
[314160785,1708032664609,-454.0,0.00039425,2]
[314160786,1708032664618,-150.0,0.00039425,2]
[314160787,1708032664628,-389.0,0.00039425,2]
[314160788,1708032664637,-8162.0,0.00039425,2]
[314160789,1708032664648,-4207.0,0.00039425,2]
[314160790,1708032664657,-2834.0,0.00039425,2]
[314160791,1708032664668,-2926.0,0.00039425,2]
[314160792,1708032664677,-1369.0,0.00039425,2]
[314160793,1708032664687,-19841.0,0.00039425,2]
[314160794,1708032664696,-2093.756,0.00039425,2]
[314160795,1708032664706,-2289.0,0.00039425,2]
[314160796,1708032664715,-953.0,0.00039425,2]
[314160797,1708032664725,-841.0,0.00039425,2]
[314160798,1708032664734,-1864.0,0.00039425,2]
[314160799,1708032664743,-1037.0,0.00039425,2]
[314160800,1708032664752,-1947.0,0.00039425,2]
[314160801,1708032664762,-1231.0,0.00039425,2]
[314160802,1708032664771,-1254.0,0.00039425,2]
[314160803,1708032664781,-197.200938,0.00039425,7]
[314160804,1708032664791,-151.0,0.00039425,7]
[314160805,1708032664800,-151.0,0.00039425,7]
[314160806,1708032664810,-151.0,0.00039425,7]
[314160807,1708032664819,-263.47413178,0.00039442,13]
[314160808,1708032664829,-234.021624,0.00039448,24]
[314160809,1708032664839,-200.0,0.00039451,20]
[314160810,1708032664849,-500.0,0.00039452,7]
[314160811,1708032664858,-500.0,0.00039452,7]
[314160812,1708032664867,-500.0,0.00039452,7]
[314160813,1708032664877,-500.0,0.00039452,7]
[314160814,1708032664886,-500.0,0.00039452,7]
[314160815,1708032664896,-500.0,0.00039452,2]
[314160816,1708032664905,-500.0,0.00039452,7]
[314160817,1708032664914,-500.0,0.00039452,7]
[314160818,1708032664923,-500.0,0.00039452,7]
[314160819,1708032664933,-500.0,0.00039452,7]
[314160820,1708032664942,-500.0,0.00039452,7]
[314160821,1708032664952,-500.0,0.00039452,7]
[314160822,1708032664961,-500.0,0.00039452,7]
[314160823,1708032664971,-500.0,0.00039452,7]
[314160824,1708032664980,-500.0,0.00039452,7]
[314160825,1708032664990,-500.0,0.00039452,7]
[314160826,1708032664999,-150.0,0.00039452,7]
[314160827,1708032665008,-500.0,0.00039452,7]
[314160828,1708032665017,-500.0,0.00039452,7]
[314160829,1708032665027,-500.0,0.00039452,7]
[314160830,1708032665037,-238.39364186,0.00039452,7]
[314160831,1708032665047,-580.46279122,0.00039452,7]
[314160832,1708032665057,-500.0,0.00039452,7]
[314160833,1708032665067,-500.0,0.00039452,7]
[314160834,1708032665077,-500.0,0.00039452,7]
[314160835,1708032665087,-500.0,0.00039452,7]
[314160836,1708032665098,-500.0,0.00039452,7]
[314160837,1708032665111,-432.95527314,0.00039452,7]
[314160838,1708032665121,-500.0,0.00039452,7]
[314160839,1708032665131,-1581.98,0.00039452,7]
[314160840,1708032665142,-500.0,0.00039452,7]
[314160841,1708032665152,-850.32,0.00039452,7]
[314160842,1708032665162,-500.0,0.00039452,7]
[314160843,1708032665172,-500.0,0.00039452,7]
[314160844,1708032665182,-500.0,0.00039452,7]
[314160845,1708032665193,-501.06,0.00039452,7]
[314160846,1708032665203,-500.0,0.00039452,7]
[314160847,1708032665214,-541.43,0.00039452,7]
[314160848,1708032665224,-391.49,0.00039452,7]
[314160849,1708032665234,-1000.0,0.00039452,7]
[314160850,1708032665245,-500.0,0.00039452,7]
[314160851,1708032665255,-268.18,0.00039452,7]
[314160852,1708032665265,-865.09,0.00039452,7]
[314160853,1708032665276,-648.98,0.00039452,7]
[314160854,1708032665286,-898.27,0.00039452,7]
[314160855,1708032665297,-500.0,0.00039452,7]
[314160856,1708032665307,-500.0,0.00039452,7]
[314160857,1708032665318,-500.0,0.00039452,7]
[314160858,1708032665328,-584.18,0.00039452,7]
[314160859,1708032665338,-783.54,0.00039452,7]
[314160860,1708032665350,-500.0,0.00039452,7]
[314160861,1708032665360,-500.0,0.00039452,7]
[314160862,1708032665369,-643.0,0.00039452,7]
[314160863,1708032665379,-500.0,0.00039452,7]
[314160864,1708032665389,-583.14819807,0.00039452,7]
[314160865,1708032665398,-2198.58,0.00039452,7]
[314160866,1708032665408,-574.76,0.00039452,7]
[314160867,1708032665418,-589.02,0.00039452,7]
[314160868,1708032665429,-500.0,0.00039452,7]
[314160869,1708032665440,-500.0,0.00039452,7]
[314160870,1708032665450,-500.0,0.00039452,7]
[314160871,1708032665460,-500.0,0.00039452,7]
[314160872,1708032665470,-500.0,0.00039452,7]
[314160873,1708032665481,-500.0,0.00039452,7]
[314160874,1708032665490,-654.29,0.00039452,7]
[314160875,1708032665500,-500.0,0.00039452,7]
[314160876,1708032665511,-500.0,0.00039452,7]
[314160877,1708032665521,-639.06,0.00039452,7]
[314160878,1708032665531,-500.0,0.00039452,7]
[314160879,1708032665541,-500.0,0.00039452,7]
[314160880,1708032665589,-500.0,0.00039452,7]
[314160881,1708032665600,-500.0,0.00039452,7]
[314160882,1708032665610,-500.0,0.00039452,7]
[314160883,1708032665620,-500.0,0.00039452,7]
[314160884,1708032665629,-500.0,0.00039452,7]
[314160885,1708032665640,-500.0,0.00039452,7]
[314160886,1708032665650,-500.0,0.00039452,7]
[314160887,1708032665660,-1209.81,0.00039452,7]
[314160888,1708032665670,-758.09,0.00039452,7]
[314160889,1708032665679,-541.64,0.00039452,7]
[314160890,1708032665689,-642.71,0.00039452,7]
[314160891,1708032665698,-500.0,0.00039452,7]
[314160892,1708032665708,-500.0,0.00039452,7]
[314160893,1708032665718,-606.62,0.00039452,7]
[314160894,1708032665727,-500.0,0.00039452,7]
[314160895,1708032665737,-500.0,0.00039452,7]
[314160896,1708032665747,-500.0,0.00039452,7]
[314160897,1708032665757,-500.0,0.00039452,2]
[314160898,1708032665767,-500.0,0.00039452,7]
[314160899,1708032665776,-500.0,0.00039452,7]
[314160900,1708032665786,-520.38,0.00039452,7]
[314160901,1708032665796,-500.0,0.00039452,7]
[314160902,1708032665805,-500.0,0.00039452,7]
[314160903,1708032665815,-1750.94,0.00039452,7]
[314160904,1708032665824,-565.26,0.00039452,7]
[314160905,1708032665834,-723.56,0.00039452,7]
[314160906,1708032665844,-611.55,0.00039452,7]
[314160907,1708032665857,-500.0,0.00039452,7]
[314160908,1708032665867,-840.09,0.00039452,7]
[314160909,1708032665878,-977.08,0.00039452,7]
[314160910,1708032665888,-151.0,0.00039452,7]
[314160911,1708032665898,-500.0,0.00039452,7]
[314160912,1708032665908,-612.49,0.00039452,7]
[314160913,1708032665917,-500.0,0.00039452,7]
[314160914,1708032665927,-500.0,0.00039452,7]
[314160915,1708032665937,-500.0,0.00039452,7]
[314160916,1708032665947,-512.9,0.00039452,7]
[314160917,1708032665956,-527.25,0.00039452,7]
[314160918,1708032665966,-500.0,0.00039452,7]
[314160919,1708032665975,-11840.50286957,0.00039463,7]
[314160920,1708032665992,-17209.49713043,0.00039463,7]
[314160921,1708032666002,-151.0,0.00039463,7]
[314160922,1708032666012,-155.34,0.00039484,2]
[314160923,1708032666023,-188.19,0.000395,2]
[314160924,1708032666033,-1000.0,0.000395,2]
[314160925,1708032666044,-151.0,0.00039542,4]
[314160926,1708032666054,-234.021624,0.00039548,24]
[314160927,1708032666064,-200.0,0.0003956,15]
[314160928,1708032666074,-800.0,0.0003956,15]
[314160929,1708032666084,-200.0,0.0003956,10]
[314160930,1708032666094,-200.0,0.0003956,20]
[314160931,1708032666107,-500.0,0.0003956,20]
[314160932,1708032666118,-2805.5,0.0003959,7]
[314160933,1708032666127,-2805.5,0.0003959,7]
[314160934,1708032666138,-995.16,0.00039592,2]
[314160935,1708032666150,-158.08,0.000396,2]
[314160936,1708032666160,-165.69,0.0003963,2]
[314160937,1708032666170,-234.021624,0.00039648,25]
[314160938,1708032666179,-500.0,0.00039681,2]
[314160939,1708032666189,-501.6691,0.00039681,2]
[314160940,1708032666200,-1000.0,0.00039681,2]
[314160941,1708032666209,-1000.0,0.00039681,2]
[314160942,1708032666222,-1101.0688,0.00039681,2]
[314160943,1708032666233,-500.0,0.00039681,2]
[314160944,1708032666243,-500.0,0.00039681,2]
[314160945,1708032666253,-500.0,0.00039681,2]
[314160946,1708032666263,-500.0,0.00039681,2]
[314160947,1708032666272,-500.0,0.00039681,2]
[314160948,1708032666282,-500.0,0.00039681,2]
[314160949,1708032666292,-500.0,0.00039681,2]
[314160950,1708032666302,-553.5681,0.00039681,2]
[314160951,1708032666313,-1130.26321765,0.00039681,10]
[314160952,1708032666322,-10507.06615383,0.00039709,13]
[314160953,1708032666333,-500.0,0.00039726,7]
[314160954,1708032666343,-265.15113864,0.00039726,7]
[314160955,1708032666354,-151.0,0.00039726,7]
[314160956,1708032666364,-161.6956585,0.00039726,2]
[314160957,1708032666374,-151.0,0.00039726,7]
[314160958,1708032666383,-151.0,0.00039726,7]
[314160959,1708032666394,-500.0,0.00039726,7]
[314160960,1708032666403,-528.6443232,0.00039726,7]
[314160961,1708032666413,-500.0,0.00039726,7]
[314160962,1708032666424,-500.0,0.00039726,7]
[314160963,1708032666434,-500.0,0.00039726,7]
[314160964,1708032666444,-500.0,0.00039726,7]
[314160965,1708032666454,-567.11,0.00039726,7]
[314160966,1708032666465,-287.69631229,0.00039726,7]
[314160967,1708032666475,-430.79,0.00039726,7]
[314160968,1708032666485,-500.0,0.00039726,7]
[314160969,1708032666496,-500.0,0.00039726,7]
[314160970,1708032666508,-500.0,0.00039726,7]
[314160971,1708032666518,-532.42,0.00039726,7]
[314160972,1708032666527,-1581.98,0.00039726,7]
[314160973,1708032666537,-500.0,0.00039726,7]
[314160974,1708032666547,-850.32,0.00039726,7]
[314160975,1708032666557,-500.0,0.00039726,7]
[314160976,1708032666567,-500.0,0.00039726,7]
[314160977,1708032666577,-541.43,0.00039726,7]
[314160978,1708032666586,-500.0,0.00039726,7]
[314160979,1708032666597,-865.09,0.00039726,7]
[314160980,1708032666608,-648.98,0.00039726,7]
[314160981,1708032666617,-898.27,0.00039726,7]
[314160982,1708032666627,-500.0,0.00039726,7]
[314160983,1708032666636,-492.61280771,0.00039726,7]
[314160984,1708032666647,-584.18,0.00039726,7]
[314160985,1708032666657,-783.54,0.00039726,7]
[314160986,1708032666666,-500.0,0.00039726,7]
[314160987,1708032666676,-500.0,0.00039726,7]
[314160988,1708032666686,-500.0,0.00039726,7]
[314160989,1708032666697,-2198.58,0.00039726,7]
[314160990,1708032666706,-574.76,0.00039726,7]
[314160991,1708032666716,-589.02,0.00039726,7]
[314160992,1708032666726,-500.0,0.00039726,7]
[314160993,1708032666736,-500.0,0.00039726,7]
[314160994,1708032666746,-500.0,0.00039726,7]
[314160995,1708032666755,-500.0,0.00039726,7]
[314160996,1708032666765,-654.29,0.00039726,7]
[314160997,1708032666774,-500.0,0.00039726,7]
[314160998,1708032666785,-500.0,0.00039726,7]
[314160999,1708032666795,-500.0,0.00039726,7]
[314161000,1708032666805,-500.0,0.00039726,7]
[314161001,1708032666815,-500.0,0.00039726,7]
[314161002,1708032666825,-500.0,0.00039726,7]
[314161003,1708032666834,-500.0,0.00039726,7]
[314161004,1708032666844,-1209.81,0.00039726,7]
[314161005,1708032666854,-758.09,0.00039726,7]
[314161006,1708032666864,-541.64,0.00039726,7]
[314161007,1708032666874,-500.0,0.00039726,7]
[314161008,1708032666883,-500.0,0.00039726,7]
[314161009,1708032666893,-385.91005266,0.00039726,7]
[314161010,1708032666902,-500.0,0.00039726,7]
[314161011,1708032666911,-500.0,0.00039726,7]
[314161012,1708032666921,-500.0,0.00039726,7]
[314161013,1708032666930,-520.38,0.00039726,7]
[314161014,1708032666940,-500.0,0.00039726,7]
[314161015,1708032666950,-500.0,0.00039726,7]
[314161016,1708032666959,-1750.94,0.00039726,7]
[314161017,1708032666969,-723.56,0.00039726,7]
[314161018,1708032666979,-237.16,0.00039726,7]
[314161019,1708032666989,-840.09,0.00039726,7]
[314161020,1708032666999,-977.08,0.00039726,7]
[314161021,1708032667009,-500.0,0.00039726,7]
[314161022,1708032667020,-612.49,0.00039726,7]
[314161023,1708032667030,-500.0,0.00039726,7]
[314161024,1708032667039,-554.85,0.00039726,7]
[314161025,1708032667049,-500.0,0.00039726,7]
[314161026,1708032667059,-500.0,0.00039726,7]
[314161027,1708032667068,-234.021624,0.00039748,24]
[314161028,1708032667078,-4134.00342623,0.00039748,2]
[314161029,1708032667087,-3154.43729943,0.0003977,9]
[314161030,1708032667098,-351.0,0.0003979,2]
[314161031,1708032667112,-11104.95224052,0.000398,7]
[314161032,1708032667123,-234.021624,0.00039848,25]
[314161033,1708032667133,-2805.5,0.00039863,7]
[314161034,1708032667146,-2805.5,0.00039863,7]
[314161035,1708032667156,-2254.2405406,0.00039872,2]
[314161036,1708032667167,-582.6829952,0.00039872,2]
[314161037,1708032667176,-18787.3538216,0.00039872,2]
[314161038,1708032667186,-150.01,0.00039879,2]
[314161039,1708032667196,-3316.12830692,0.00039879,2]
[314161040,1708032667206,-160.57533571,0.00039879,30]
[314161041,1708032667216,-150.0,0.00039879,2]
[314161042,1708032667227,-150.0,0.00039879,2]
[314161043,1708032667237,-247815.49162182,0.0003988,2]
[314161044,1708032667430,-18054.31705623,0.0003988,2]
[314161045,1708032667443,-40650.11631091,0.0003988,2]
[314161046,1708032667453,-151.0,0.0003988,7]
[314161047,1708032667463,-151.0,0.0003988,7]
[314161048,1708032667473,-151.0,0.0003988,7]
[314161049,1708032667482,-151.0,0.0003988,7]
[314161050,1708032667491,-151.0,0.0003988,2]
[314161051,1708032667501,-151.0,0.0003988,2]
[314161052,1708032667511,-268.162787,0.0003988,7]
[314161053,1708032667522,-425.404736,0.0003988,7]
[314161054,1708032667532,-425.404736,0.0003988,7]
[314161055,1708032667542,-151.0,0.0003988,7]
[314161056,1708032667552,-151.0,0.0003988,7]
[314161057,1708032667562,-151.0,0.0003988,7]
[314161058,1708032667571,-151.0,0.0003988,7]
[314161059,1708032667581,-151.0,0.0003988,7]
[314161060,1708032667592,-151.0,0.0003988,7]
[314161061,1708032667603,-151.0,0.0003988,7]
[314161062,1708032667612,-178.95106183,0.0003989,7]
[314161063,1708032667622,-1002.7243,0.00039899,2]
[314161064,1708032667632,-7192.93129912,0.000399,15]
[314161065,1708032667645,-5286.14468588,0.000399,15]
[314161066,1708032667873,-155.0,0.00033598,4]
[314161067,1708032667883,-500.0,0.00038356,7]
[314161068,1708032667893,-707.0,0.00039425,2]
[314161069,1708032667902,-59.25,0.000399,15]
[314161073,1708032805008,1250.0,0.00025,3]
[314161074,1708032806441,1300.0,0.00027,3]
[314161075,1708032807372,1350.0,0.00029,3]
[314161076,1708033032807,-333.96330665,0.00032965,4]
[314161077,1708033046178,-200.26250485,0.000332,2]
[314161078,1708033046202,-155.0,0.00033299,4]
[314161079,1708033046226,-150.0,0.00033299,2]
[314161080,1708033046246,-150.0,0.00033299,3]
[314161081,1708033046267,-2269.0,0.000333,2]
[314161082,1708033046289,-17970.0,0.000333,2]
[314161083,1708033046310,-165.56,0.00034245,2]
[314161084,1708033046330,-250.0,0.00034245,111]
[314161085,1708033046351,-3225.51,0.00034245,2]
[314161086,1708033046371,-720.56,0.00034739,2]
[314161087,1708033046397,-720.0593934,0.00034772,10]
[314161088,1708033053614,586.98,0.00034245,2]
[314161089,1708033061504,-586.98,0.00035889,2]
[314161090,1708033061525,-333.96330665,0.00036303,4]
[314161091,1708033061546,-419.9726,0.00036572,2]
[314161092,1708033061567,-32002.18888845,0.00036672,2]
[314161093,1708033116347,500.0,0.000302,2]
[314161095,1708033486282,10000.0,0.000302,2]
[314161096,1708033521740,3108.0,0.000302,2]
[314161097,1708033649911,2000.0,0.000299,3]
[314161098,1708033669584,200.0,0.000302,5]
[314161110,1708033831829,-272.4182517,0.00033586,4]
[314161112,1708033831842,-286.17896661,0.00033587,4]
[314161114,1708033831852,-684.53,0.00033589,2]
[314161117,1708033831861,-350.27299669,0.00034145,2]
[314161118,1708033831946,-2634.58520331,0.00034145,2]
[314161119,1708033831955,-333.96330665,0.00034244,4]
[314161120,1708033831964,-250.0,0.00034245,2]
[314161121,1708033831974,-161.62,0.00034245,2]
[314161122,1708033831984,-1361.77949983,0.0003476,10]
[314161123,1708033831993,-784.34955894,0.0003476,10]
[314161124,1708033832003,-4328.89,0.00034993,2]
[314161125,1708033832012,-200.0,0.00035048,2]
[314161126,1708033832021,-250.0,0.00035112,111]
[314161127,1708033832030,-269.15,0.00035186,2]
[314161128,1708033832039,-174.36,0.00035258,2]
[314161129,1708033832051,-150.0,0.00035323,2]
[314161130,1708033832061,-500.0,0.00035323,2]
[314161131,1708033832071,-391.32,0.00035347,2]
[314161132,1708033832080,-499.99,0.00035347,2]
[314161133,1708033832093,-174.16,0.00035362,120]
[314161134,1708033832103,-2705.0,0.00035417,2]
[314161135,1708033832113,-4350.67,0.00035658,37]
[314161136,1708033832123,-2000.0,0.0003574,2]
[314161137,1708033832134,-155.54,0.00035801,2]
[314161138,1708033832143,-684.53,0.00035853,2]
[314161139,1708033832153,-200.0,0.00035879,2]
[314161140,1708033832162,-191.59,0.00035925,2]
[314161141,1708033832173,-1510.72,0.00035955,2]
[314161142,1708033832182,-250.0,0.00036,2]
[314161143,1708033832191,-199.83,0.00036044,2]
[314161144,1708033832200,-218.0,0.0003623,2]
[314161145,1708033832209,-63456.801882,0.00036572,2]
[314161146,1708033832218,-1220.3773,0.00036572,2]
[314161147,1708033832227,-212997.81111155,0.00036672,2]
[314161148,1708033832236,-163.63,0.00036691,2]
[314161149,1708033832245,-1000.0,0.00036699,2]
[314161150,1708033832254,-155.54,0.00036734,2]
[314161151,1708033832264,-205.0,0.00036932,2]
[314161153,1708033832273,-1935.39,0.00036971,2]
[314161155,1708033832282,-391.32,0.0003699,2]
[314161157,1708033832291,-234.021624,0.00037348,25]
[314161159,1708033832300,-188.93,0.000374,2]
[314161160,1708033832310,-234.021624,0.00037448,25]
[314161162,1708033832319,-234.021624,0.00037448,27]
[314161163,1708033832328,-234.021624,0.00037448,24]
[314161164,1708033832339,-234.021624,0.00037454,27]
[314161165,1708033832348,-570.03931749,0.000375,2]
[314161166,1708033832357,-155.0,0.0003753,2]
[314161167,1708033832366,-234.021624,0.00037548,24]
[314161169,1708033832376,-234.021624,0.00037548,26]
[314161171,1708033832386,-234.021624,0.00037554,24]
[314161173,1708033832395,-3864.13791255,0.00037573,4]
[314161174,1708033832405,-151.61730201,0.00037586,3]
[314161175,1708033832414,-687.21272762,0.00037599,3]
[314161176,1708033832428,-489.57665551,0.00037599,3]
[314161177,1708033832438,-171.35182942,0.00037599,3]
[314161178,1708033832447,-174.36,0.00037609,2]
[314161179,1708033832456,-236.5146357,0.00037611,3]
[314161180,1708033832466,-150.0,0.0003763,2]
[314161181,1708033832476,-150.0,0.0003763,2]